{"text_format":"1","workbook":"xlsx","n_sheets":2,"sheets":["COMMS Parts","COMMS Decision Matrix"],"not_rendered":{"charts":0,"images":1,"macros":1,"external_links":0,"defined_names":10,"comments":0,"pivot_tables":0},"unopened":[],"bounds":{"document_bytes":16777216,"sheet_cells":100000,"rows_first":2000,"rows_last":500,"rows_between":2000,"halvings":0,"cell_chars":16384,"cell_head_chars":4096},"cells_cut":0,"cells_raw":0,"read":"whole","date_system":"1900"}

{"sheet":"COMMS Parts","index":0,"n_rows":120,"n_cols":67,"rows_kept":120,"cut":false,"hidden":false,"merged":[[1,1,1,12],[71,15,71,16],[70,7,71,10],[89,27,89,29],[90,27,90,29],[91,27,91,29],[92,27,92,29],[101,7,101,48],[93,27,93,29],[94,27,94,29],[95,27,95,29],[96,27,96,29],[97,27,97,29],[98,27,98,29],[99,27,99,29],[100,27,100,29],[87,13,87,16],[88,13,88,14],[88,15,88,16],[88,24,88,26],[87,7,88,11],[87,12,88,12],[88,17,88,18],[88,19,88,20],[88,21,88,22],[73,24,73,26],[39,27,39,29],[40,27,40,29],[41,27,41,29],[38,27,38,29],[72,27,72,29],[73,27,73,29],[74,27,74,29],[75,27,75,29],[56,27,56,29],[57,27,57,29],[58,27,58,29],[60,24,60,26],[60,27,60,29],[79,24,79,26],[70,13,70,16],[71,13,71,14],[20,21,20,23],[54,17,54,20],[20,17,20,20],[37,17,37,21],[54,21,54,23],[37,22,37,23],[54,24,54,26],[38,24,38,26],[37,24,37,26],[71,21,71,23],[71,17,71,20],[20,24,20,26],[71,24,71,26],[72,18,72,19],[73,18,73,19],[74,18,74,19],[75,18,75,19],[21,24,21,26],[22,24,22,26],[72,24,72,26],[74,24,74,26],[15,1,15,4],[36,7,37,10],[36,13,36,16],[37,13,37,14],[37,15,37,16],[50,7,50,48],[33,7,33,48],[19,7,20,10],[19,13,19,16],[20,13,20,14],[20,15,20,16],[16,7,16,48],[21,27,21,29],[22,27,22,29],[84,7,84,48],[53,7,54,10],[53,13,53,16],[54,13,54,14],[54,15,54,16],[67,7,67,48],[58,24,58,26],[59,24,59,26],[3,47,3,48],[7,43,7,44],[8,43,8,44],[59,27,59,29],[55,27,55,29],[39,24,39,26],[40,24,40,26],[41,24,41,26],[80,24,80,26],[81,24,81,26],[82,24,82,26],[83,24,83,26],[75,24,75,26],[76,24,76,26],[77,24,77,26],[78,24,78,26],[2,60,2,63],[2,64,2,67],[3,66,3,67],[3,64,3,65],[3,62,3,63],[3,60,3,61],[7,40,7,41],[8,40,8,41],[7,35,7,37],[8,35,8,37],[2,56,2,59],[3,58,3,59],[3,56,3,57],[2,42,2,48],[3,35,3,39],[5,40,5,41],[6,40,6,41],[4,35,4,37],[5,35,5,37],[6,35,6,37],[4,40,4,41],[6,43,6,44],[3,40,3,41],[2,35,2,41],[4,2,4,3],[5,2,5,3],[2,1,3,5],[2,7,3,10],[4,43,4,44],[5,43,5,44],[3,19,3,26],[3,27,3,34],[2,19,2,34],[2,13,2,14],[3,15,3,16],[3,17,3,18],[2,15,2,18],[3,42,3,46],[12,2,12,3],[13,2,13,3],[14,2,14,3],[6,2,6,3],[7,2,7,3],[8,2,8,3],[9,2,9,3],[10,2,10,3],[11,2,11,3],[104,7,105,10],[104,13,104,16],[105,13,105,14],[105,15,105,16],[105,17,105,20],[105,21,105,23],[105,24,105,26],[106,18,106,19],[106,24,106,26],[106,27,106,29],[107,18,107,19],[107,24,107,26],[107,27,107,29],[108,18,108,19],[108,24,108,26],[108,27,108,29],[109,18,109,19],[109,24,109,26],[109,27,109,29],[110,24,110,26],[111,24,111,26],[112,24,112,26],[113,24,113,26],[114,24,114,26],[115,24,115,26],[116,24,116,26],[117,24,117,26],[118,7,118,48]]}
[]
[null,"M.A.N.T.I.S COMMS Parts Sheet"]
[null,"Components List",null,null,null,null,null,"COMMS",null,null,null,null,null,"CSA",null,"Power Requiremnets",null,null,null,"RF Functionality",null,null,null,null,null,null,null,null,null,null,null,null,null,null,null,"Platform Support",null,null,null,null,null,null,"Cost Effectiveness",null,null,null,null,null,null,null,null,null,null,null,null,null,"RF Functionality",null,null,null,"Platform Support",null,null,null,"Cost Effectiveness"]
[null,null,null,null,null,null,null,null,null,null,null,null,null,null,null,"Voltage",null,"Current",null,"RF Capabilities",null,null,null,null,null,null,null,"RF Performance",null,null,null,null,null,null,null,"Compatibility",null,null,null,null,"Support Ecosystem",null,"Operational Practicality",null,null,null,null,"Longevity",null,null,null,null,null,null,null,null,"Capabilities",null,"Performance",null,"Compatability",null,"Support Ecosystem",null,"Operational Practicality",null,"Longevity"]
[null,"Components List","Status",null,"Final Selection","Cost",null,"Component","Component Name","Manufacturer","Cost (CAD)",null,"Selection","Expert Evaluation","CSA Support","Max Voltage","Min Voltage","Max Current","Min Current","Frequency Coverage","ADC Resolution (bits)","Duplex Mode","IBW","DSP / Modulation","Host Dependency","Frequency Control","Interface & Connectivity","Noise Figure (typical)","Dynamic Range","Linearity","Additional Ports","Processing Throughput","Latency","Front-End Filtering","Transmitting & Uplink","Software Support (Drivers, OS & API/SDK Availability)",null,null,"SDR Framework Integration","Satellite Comms Software Integration","Resources & Existing Documentation",null,"Usability & Setup","Operational Cost & Maintenance",null,"Feasibility of Automation","System Risk","Tech Heritage & Future Adaptability","Community / Vendor Support"]
[null,"SDR","Lead Approved",null,{"$f":"_xlfn.XLOOKUP(\"Selected\",M6:M16,I6:I16,\"N?A\")","v":"USRP B210 (Board Only)"},{"$f":"_xlfn.XLOOKUP(\"Selected\",M6:M16,K6:K16,\"N?A\")","v":3095},null,"SDR","USRP B200 (Board Only)","Ettus Research",1895,null,"In Consideration","Strong candidate for a capable ground station, less flexibility to have multiple antennas","Yes","5 V (USB) or 6 V (with external power supply if added)","Not Specified","3.0 A","Not specified","70 MHz - 6 GHz","12 bit ADC/DAC","Half- or full-","56 MHz","Continuous real-time DSP with Spartan-6 FPGA (supports 2GFSK scheme)","Low - Moderate","LO tunable between 50 MHz to 6 GHz; oscillator precision of +-2 ppm","USB 3.0 SuperSpeed, external timing (1 PPS / 10 MHz), GPIO for Tx/Rx switch control","<8 dB (single channel)","Available gain: Rx: 76 dB, Tx: 89.8 dB; mid-range recommended ","~20 dBm (IIP3 at typical NF, single channel)","GPIO pins, Timing Reference input: 1 PPS / 10 MHz","Reliable, high; sample rate of 61.44 MSPS","Low","To be handled by an external BPF",">10 dBm (single channel)","USRP Hardware Driver (UHD); Linux, Windows, macOS; UHD API",null,null,"GNU Radio compatible","Gpredict compatible (via intermediary software)","Technical Support Requests, SDR Community Mailing Lists; Ettus Research Knowledge Base, USRP Hardware Driver and USRP Manual ",null,"Moderate","Low",null,"Very high","Low","Strong","Strong"]
[null,"Preamplifier","In Progress",null,{"$f":"_xlfn.XLOOKUP(\"Selected\",M23:M33,I23:I33,\"N/A\")","v":"SPF5189Z LNA Preamp"},{"$f":"_xlfn.XLOOKUP(\"Selected\",M23:M33,K23:K33,\"N/A\")","v":13.22},null,"SDR","USRP B210 (Board Only)","Ettus Research",3095,null,"Selected","Strong candidate for a capable ground station, with future-proofing built in","Yes","5 V (USB) or 6 V (with external power supply included, required for 2x2 MIMO)","Not Specified","3.0 A","Not specified","70 MHz - 6 GHz","12 bit ADC/DAC","Half- or full-","56 MHz in 1x1; 30.72 MHz in 2x2","Continuous real-time DSP with Spartan-6 FPGA (supports 2GFSK scheme)","Low - Moderate","LO tunable between 50 MHz to 6 GHz; oscillator precision of +-2 ppm","USB 3.0 SuperSpeed, external timing (1 PPS / 10 MHz), GPIO for Tx/Rx switch control","<8 dB (single channel)","Available gain: Rx: 76 dB, Tx: 89.8 dB; mid-range recommended ","~20 dBm (IIP3 at typical NF, single channel)","GPIO pins, Timing Reference input: 1 PPS / 10 MHz","Reliable, high; sample rate of 61.44 MSPS","Low","To be handled by an external BPF",">10 dBm (single channel)","USRP Hardware Driver (UHD); Linux, Windows, macOS; UHD API",null,null,"GNU Radio compatible","Gpredict compatible (via intermediary software)","Technical Support Requests, SDR Community Mailing Lists; Ettus Research Knowledge Base, USRP Hardware Driver and USRP Manual ",null,"Moderate","Low - Moderate",null,"Very high","Low","Very strong","Strong"]
[null,"Low Noise Amplifier","Lead Approved",null,{"$f":"_xlfn.XLOOKUP(\"Selected\",M40:M50,I40:I50,\"N?A\")","v":"70cm Low Noise Preamplifier with Band Pass Filter"},{"$f":"_xlfn.XLOOKUP(\"Selected\",M40:M50,K40:K50,\"N/A\")","v":253},null,"SDR","LimeSDR Mini 2.0","Lime Microsystems",864.1,null,"In Consideration","Good alternative; some experience testing and developing GNU Radio flowgraphs","Yes","USB connector (5V)","USB connector (5V)","900 mA","Not specified","10 MHz - 3.5 GHz","12 bits","Full-","40 MHz","Flexible but dependent on DSP software frameworks","Moderate","Flexible frequency tuning via software APIs; no explicit tuning specs given; oscillator precision of +-1 ppm (initial), +-4 ppm (stable)","USB 3.0","2.0 dB - 3.5 dB ","Derived from ADC resolution; 6.02 x 12-bit = ~74 dB","~4 dBm (IIP3 for LMS7002M at typical)","GPIO headers","High; sample rate of 30.72 MSPS","Moderate","To be handled by an external BPF","Max. 10 dBm","Lime Suite / Lime Suite NG; Linux, Windows, macOS; LimeSuite and SoapySDR ",null,null,"GNU Radio, SoapySDR compatible","Gpredict compatible (via intermediary software)","Myriad RF Support page, other CubeSat projects and university lab groups; Myriad RF project pages, Lime Microsystems wiki, GitHub",null,"Complex","Moderate - High",null,"High","Moderate - High","Moderate","Moderate"]
[null,"Power Amplifier","In Progress",null,{"$f":"_xlfn.XLOOKUP(\"Selected\",M57:M67,I57:I67,\"N?A\")","v":"PA-150U UHF 430-470MHz 150W RF Power Amplifier"},{"$f":"_xlfn.XLOOKUP(\"Selected\",M57:M67,K57:K67,\"N/A\")","v":1011.4},null,"SDR","HackRF One","Great Scott Gadgets",429.99,null,"Rejected","Less familiar / less preferred","No / Limited","USB connector (5V DC)","Not Specified","500 mA","Not specified","1 MHz - 6 GHz","8 bits","Half-","20 MHz","Limited; DSP is mostly host-based; no FPGA","High","Flexible frequency tuning via software; no explicit tuning specs given; oscillator precision of +-20 ppm","High Speed USB 2.0 (with USB Micro-B connector)","11.1 dB (w/t LNA), 3.4 dB (w/ LNA)","Derived from ADC resolution; 6.02 x 8-bit = ~48 dB","No official IIP3 specs listed","CLKIN / CLKOUT, Expansion headers, GPIO pins","Limited (due to USB 2.0); sample rate of 20 MSPS","Higher","To be handled by an external BPF","5 - 15 dBm ( for 10 MHz to 2170 MHz)","libhackrf; Linux, Windows, macOS; libhackrf",null,null,"GNU Radio, SDR# compatible","Gpredict compatible (via intermediary software)","Software Defined Radio with HackRF One video series; HackRF Read the Docs page, GitHub repo,",null,"Simple initally; increased difficulty later","Low - Moderate",null,"Limited","Moderate","Limited","Low-Moderate"]
[null,"UHF Bandpass Filter","Lead Approved",null,{"$f":"_xlfn.XLOOKUP(\"Selected\",M74:M84,I74:I84,\"N?A\")","v":"70cm 200W Low Loss Band Pass Filter 6530"},{"$f":"_xlfn.XLOOKUP(\"Selected\",M74:M84,K74:K84,\"N/A\")","v":394.98}]
[null,"Tx/Rx Switch","Requested"]
[null,"Lightning Protection","In Progress"]
[null,"Rotator","In Progress"]
[null,"Antenna","In Progress"]
[]
[null,"Total Cost",null,null,null,{"$f":"SUM(F6:F15)","v":4767.6000000000004}]
[null,null,null,null,null,null,null,"Final Selection"]
[null,null,null,null,null,null,null,"SDR"]
[]
[null,null,null,null,null,null,null,"COMMS",null,null,null,null,null,"Power Requiremnets"]
[null,null,null,null,null,null,null,null,null,null,null,null,null,"Voltage",null,"Current",null,"Design Constriants ",null,null,null,"Link Budget Data",null,null,"Connector"]
[null,null,null,null,null,null,null,"Component","Componnent Name","Manufacturer","Cost",null,"Selection","Max Voltage","Min Voltage","Max Current","Min Current","input for max power","Max power output","Max Power Input","VSWR","Max Gain (dB)","Min Gain (dB)","Noise (dB)","Connector",null,null,"link"]
[null,null,null,null,null,null,null,"Preamplifier","SPF5189Z LNA Preamp","Passion Radio",13.22,null,"Selected",5,3.3,0.125,7.4999999999999997E-2,null,0.185,0.5,"1.5:1",19,15,0.6,"SMA male",null,null,"https://www.passion-radio.com/sdr-accessory/lna-spf-833.html?srsltid=AfmBOooDXnlplgRKQ2tex0PW9RSpBwJW_h-I__8AHj7Fn2qEaBiyIhKD"]
[]
[]
[]
[]
[]
[]
[]
[]
[]
[]
[null,null,null,null,null,null,null,"Final Selection"]
[null,null,null,null,null,null,null,"Preamplifier"]
[]
[null,null,null,null,null,null,null,"COMMS",null,null,null,null,null,"Power Requiremnets"]
[null,null,null,null,null,null,null,null,null,null,null,null,null,"Voltage",null,"Current",null,"Design Constriants ",null,null,null,null,"Link Budget Data",null,"Connector"]
[null,null,null,null,null,null,null,"Component","Componnent Name","Manufacturer","Cost",null,"Selection","Max Voltage","Min Voltage","Max Current","Min Current","input for max power","Max power output","Max Power Input","Rlin Loss (dB)","VSWR","Gain (dB)","Noise (dB)","Connector",null,null,"link"]
[null,null,null,null,null,null,null,"Low Noise Amplifier","70cm Super Low Noise EME Preamplifier 430-450MHz","Antennas-Amplifiers ",269,null,"Rejected",12,12,7.0000000000000007E-2,7.0000000000000007E-2,"--","--","--",-4.5,"04:01:00",20,0.19,"Type N female",null,null,"https://antennas-amplifiers.com/70cm-super-low-noise-eme-preamplifier-430-450mhz/"]
[null,null,null,null,null,null,null,"Low Noise Amplifier","70cm Low Noise Preamplifier with Band Pass Filter","Antennas-Amplifiers ",253,null,"Selected",15,10,0.1,0.1,"--","--","--",-18,"1.3:1",20,0.63,"Type N female",null,null,"https://antennas-amplifiers.com/70cm-low-noise-preamplifier-with-band-pass-filter/?utm_source=chatgpt.com"]
[null,null,null,null,null,null,null,"Low Noise Amplifier","LNA4ALL LNA","LNA for All","Quote",null,"Rejected",9,6,6.5000000000000002E-2,5.5E-2,"--","--","--","--","--",23.5,0.75,"Type N female",null,null,"https://lna4all.blogspot.com/2013/04/lna-for-all-low-noise-amplifier-for.html "]
[]
[]
[]
[]
[]
[]
[]
[]
[null,null,null,null,null,null,null,"Final Selection"]
[null,null,null,null,null,null,null,"Low Noise Amplifier"]
[]
[null,null,null,null,null,null,null,"COMMS",null,null,null,null,null,"Power Requiremnets"]
[null,null,null,null,null,null,null,null,null,null,null,null,null,"Voltage",null,"Current",null,"Design Constriants ",null,null,null,"Link Budget Data",null,null,"Connector"]
[null,null,null,null,null,null,null,"Component","Componnent Name","Manufacturer","Cost",null,"Selection","Max Voltage","Min Voltage","Max Current","Min Current","input for max power","Max power output","Max Power Input","VSWR","Calculated Gain","Gain","Noise","keying","RF","Remote control","link"]
[null,null,null,null,null,null,null,"Power Amplifier","PA-150U UHF 430-470MHz 150W RF Power Amplifier","Toptek Communications",1011.4,null,"Selected",10.5,14.5,30,30,3,150,8,"1.5:1*",{"$f":"10*LOG10(S57/R57)","v":16.989700043360187},10,3.5,"stereo 1/8in female","Type N female","4-Pin Mini-DIN","https://www.dxengineering.com/parts/tek-pa-150u"]
[null,null,null,null,null,null,null,"Power Amplifier","MUA 100 Wideband UHF Amplifier","RM Italy",896.59,null,"Rejected",16,12,20,20,5,100,5,"1.5:1*",{"$f":"10*LOG10(S58/R58)","v":13.010299956639813},"--","--","RCA phone female jack","Type N female","N/A","https://www.dxengineering.com/parts/rmy-mua100#overview"]
[null,null,null,null,null,null,null,"Power Amplifier","Henry Radio UHF (70cm) Power Amplifiers","Henry Radio Inc.",2312.62,null,"Rejected",13.8,13.8,45,45,30,200,30,"1.5:1*",{"$f":"10*LOG10(S59/R59)","v":8.2390874094431883},"--",1,"UHF,N, or BNC Connectors upon request",null,null,"https://www.bridgecomsystems.com/products/henry-radio-uhf-70cm-power-amplifiers"]
[null,null,null,null,null,null,null,"Power Amplifier","VHF/UHF Compact Power Amplifier (CPA)","Crecend Technologies, LLC","Request quote",null,"In Consideration",36,10,"--","--","--","--",10,"1.5:1","--",15,6,"N or TNC connectors",null,null,"https://crescendrf.com/defense/defense-products/vhf-uhf-compact-power-amplifier-cpa/"]
[null,null,null,null,null,null,null,"Power Amplifier","432MHz 25W Linear Amplifier","Q5 Singal",391.06,null,"In Consideration",13.8,13.8,7,7,10,55,10,"1.5:1","--","--",3,"N connector",null,null,"http://q5signal.com/index.php?route=product/product&product_id=78"]
[]
[]
[]
[]
[]
[]
[null,null,null,null,null,null,null,"Final Selection"]
[null,null,null,null,null,null,null,"Power Amplifier"]
[]
[null,null,null,null,null,null,null,"COMMS",null,null,null,null,null,"Power Requiremnets"]
[null,null,null,null,null,null,null,null,null,null,null,null,null,"Voltage",null,"Current",null,"Design Constriants ",null,null,null,"Link Budget Data",null,null,"Connector"]
[null,null,null,null,null,null,null,"Component","Componnent Name","Manufacturer","Cost",null,"Selection","Max Voltage","Min Voltage","Max Current","Min Current","BW (Mhz)","Max power input",null,"VSWR","Noise (dB)","Rlin Loss (dB)","VSWR","Connector",null,null,"link"]
[null,null,null,null,null,null,null,"UHF Bandpass Filter","70cm 200W Low Loss Band Pass Filter 6530","Antennas-Amplifiers ",394.98,null,"Selected",100,0,0.2,0,20,200,null,"1.5:1*",0.12,-35,"<1.5:1","Type N female",null,null,"https://www.dxengineering.com/parts/atf-6530#overview"]
[null,null,null,null,null,null,null,"UHF Bandpass Filter","Ultra Low Loss 70cm Receive Band Pass Filter 6500","Antennas-Amplifiers ",233.7,null,"In Consideration",100,0,0.2,0,20,200,null,"1.5:1*",0.15,-35,"<1.5:1","Type N female",null,null,"https://www.dxengineering.com/parts/atf-6500#overview"]
[null,null,null,null,null,null,null,"UHF Bandpass Filter","ZVBP-435-S+","Mini-Circuits",1410.31,null,"In Consideration","--","--","--","--",20,"--",null,"1.5:1*",1.5,-35,"<1.5:1","Type N female",null,null,"https://www.digikey.ca/en/products/detail/mini-circuits/ZVBP-435-S/25963268?msockid=29b7fb6d317a63ad18d4ed2430bb6214"]
[]
[]
[]
[]
[]
[]
[]
[]
[null,null,null,null,null,null,null,"Final Selection"]
[null,null,null,null,null,null,null,"UHF Bandpass Filter"]
[]
[null,null,null,null,null,null,null,"COMMS",null,null,null,null,null,"Power Requiremnets"]
[null,null,null,null,null,null,null,null,null,null,null,null,null,"Voltage",null,"Current",null,"Torque",null,"Loading",null,"Rotation",null,"Weight","Connector"]
[null,null,null,null,null,null,null,"Component","Componnent Name","Manufacturer","Cost or Rotator","Cost of Controller","Selection","Max Voltage","Min Voltage","Max Current","Min Current","Rotating Torque","Breaking Torque","Wind Load","Vertical Load","Rotation Range","Precision","Rotator Weight","# of Wires","Read Out (Dig/An)","Connector","link"]
[null,null,null,null,null,null,null,"Rotator","Alpha Model RAK Rotator","Alpha Radio Ltd. ",1198.23,712.25,"In Consideration",24,"--",5,2,3340,14000,"--",550,"360 ± 180",1,20,4,"Digital","USB","http://alfaradio.ca:81/alfaspid.html"]
[]
[]
[]
[]
[]
[]
[]
[]
[]
[]
[null,null,null,null,null,null,null,"Final Selection"]
[null,null,null,null,null,null,null,"Rotator"]
[]
[null,null,null,null,null,null,null,"COMMS",null,null,null,null,null,"Power Requiremnets"]
[null,null,null,null,null,null,null,null,null,null,null,null,null,"Voltage",null,"Current",null,"Design Constriants ",null,null,null,"Link Budget Data",null,null,"Connector"]
[null,null,null,null,null,null,null,"Component","Componnent Name","Manufacturer","Cost",null,"Selection","Max Voltage","Min Voltage","Max Current","Min Current","BW (Mhz)","Max power input",null,"VSWR","Noise (dB)","Rlin Loss (dB)","VSWR","Connector",null,null,"link"]
[null,null,null,null,null,null,null,"Antenna"]
[]
[]
[]
[]
[]
[]
[]
[]
[]
[]
[null,null,null,null,null,null,null,"Final Selection"]
[null,null,null,null,null,null,null,"Antenna"]

{"sheet":"COMMS Decision Matrix","index":1,"n_rows":32,"n_cols":14,"rows_kept":32,"cut":false,"hidden":false,"merged":[[0,0,0,5],[25,0,25,5],[8,1,8,6],[26,1,26,3],[17,1,17,5],[17,6,17,7],[8,7,8,12],[7,0,7,13],[16,0,16,8]]}
["MANTIS SDR Selection"]
["SDR","RF Functionality (50%)","Cost Effectiveness (30%)","Platform Support (20%)","Total","Normalized"]
["USRP B200",{"$f":"N11*0.5","v":2.1800000000000002},{"$f":"I20*0.3","v":1.2899999999999998},{"$f":"F29*0.2","v":0.96400000000000008},{"$f":"SUM(B3:D3)","v":4.4340000000000002},{"$f":"E3/$E$4*100","v":99.28792153701464}]
["USRP B210",{"$f":"N12*0.5","v":2.3420000000000001},{"$f":"I21*0.3","v":1.1597999999999999},{"$f":"F30*0.2","v":0.96400000000000008},{"$f":"SUM(B4:D4)","v":4.4658000000000007},{"$f":"E4/$E$4*100","v":100}]
["LimeSDR Mini 2.0",{"$f":"N13*0.5","v":2.4500000000000002},{"$f":"I22*0.3","v":0.9977999999999998},{"$f":"F31*0.2","v":0.68400000000000005},{"$f":"SUM(B5:D5)","v":4.1318000000000001},{"$f":"E5/$E$4*100","v":92.520936898204127}]
["HackRF One",{"$f":"N14*0.5","v":1.0860000000000003},{"$f":"I23*0.3","v":1.0697999999999999},{"$f":"F32*0.2","v":0.72199999999999998},{"$f":"SUM(B6:D6)","v":2.8778000000000001},{"$f":"E6/$E$4*100","v":64.440861659725016}]
[]
["RF Functionality (50%)"]
[null,"RF Performance (60% of RF Functionality)",null,null,null,null,null,"RF Capabilities (40% of RF Functionality)"]
["SDR","Noise Figure (8%)","Dynamic Range (25%)","Linearity (15%)","Latency (10%)","Front-end Filtering (5%)","Transmitting & Uplink (32%)","ADC Resolution (10%)","IBW (8%)","DSP / Modulation (10%)","Host Dependency (22%)","Frequency Control (40%)","Interface & Connectivity (10%)","Total"]
["USRP B200",{"$f":"4*0.08*0.6","v":0.192},{"$f":"5*0.25*0.6","v":0.75},{"$f":"5*0.15*0.6","v":0.44999999999999996},{"$f":"4*0.1*0.6","v":0.24},{"$f":"4*0.05*0.6","v":0.12},{"$f":"4*0.32*0.6","v":0.76800000000000002},{"$f":"5*0.1*0.4","v":0.2},{"$f":"4*0.08*0.4","v":0.128},{"$f":"4*0.1*0.4","v":0.16000000000000003},{"$f":"4*0.22*0.4","v":0.35200000000000004},{"$f":"5*0.4*0.4","v":0.8},{"$f":"5*0.1*0.4","v":0.2},{"$f":"SUM(B11:M11)","v":4.3600000000000003}]
["USRP B210",{"$f":"4*0.08*0.6","v":0.192},{"$f":"5*0.25*0.6","v":0.75},{"$f":"5*0.15*0.6","v":0.44999999999999996},{"$f":"5*0.1*0.6","v":0.3},{"$f":"4*0.05*0.6","v":0.12},{"$f":"5*0.32*0.6","v":0.96},{"$f":"5*0.1*0.4","v":0.2},{"$f":"5*0.08*0.4","v":0.16000000000000003},{"$f":"5*0.1*0.4","v":0.2},{"$f":"4*0.22*0.4","v":0.35200000000000004},{"$f":"5*0.4*0.4","v":0.8},{"$f":"5*0.1*0.4","v":0.2},{"$f":"SUM(B12:M12)","v":4.6840000000000002}]
["LimeSDR Mini 2.0",{"$f":"3*0.08*6","v":1.44},{"$f":"4*0.25*0.6","v":0.6},{"$f":"3*0.15*0.6","v":0.26999999999999996},{"$f":"3*0.1*0.6","v":0.18000000000000002},{"$f":"3*0.05*0.6","v":9.0000000000000011E-2},{"$f":"4*0.32*0.6","v":0.76800000000000002},{"$f":"5*0.1*0.4","v":0.2},{"$f":"4*0.08*0.4","v":0.128},{"$f":"4*0.1*0.4","v":0.16000000000000003},{"$f":"3*0.22*0.4","v":0.26400000000000001},{"$f":"4*0.4*0.4","v":0.64000000000000012},{"$f":"4*0.1*0.4","v":0.16000000000000003},{"$f":"SUM(B13:M13)","v":4.9000000000000004}]
["HackRF One",{"$f":"2*0.08*0.6","v":9.6000000000000002E-2},{"$f":"2*0.25*0.6","v":0.3},{"$f":"2*0.15*0.6","v":0.18},{"$f":"2*0.1*0.6","v":0.12},{"$f":"2*0.05*0.6","v":0.06},{"$f":"2*0.32*0.6","v":0.38400000000000001},{"$f":"2*0.1*0.4","v":8.0000000000000016E-2},{"$f":"3*0.08*0.4","v":9.6000000000000002E-2},{"$f":"3*0.1*0.4","v":0.12000000000000002},{"$f":"2*0.22*0.4","v":0.17600000000000002},{"$f":"3*0.4*0.4","v":0.48000000000000009},{"$f":"2*0.1*0.4","v":8.0000000000000016E-2},{"$f":"SUM(B14:M14)","v":2.1720000000000006}]
[]
[]
["Cost Effectivness (30%)"]
[null,"Operational Practicality (70% of Cost Effectiveness)",null,null,null,null,"Longevity (30% of Cost Effectiveness)"]
["SDR","Intial Cost (15%)","Usability & Setup (30%)","Operational Cost & Maintenance Effort (25%)","Feasibility of Automation (8%)","System Risk (22%)","Tech Heritage & Future Adaptability (55%)","Expected Community / Vendor Support (45%)","Total"]
["USRP B200",{"$f":"2*0.15*0.7","v":0.21},{"$f":"4*0.3*0.7","v":0.84},{"$f":"4*0.25*0.7","v":0.7},{"$f":"5*0.08*0.7","v":0.27999999999999997},{"$f":"5*0.22*0.7","v":0.77},{"$f":"5*0.55*0.3","v":0.82499999999999996},{"$f":"5*0.45*0.3","v":0.67499999999999993},{"$f":"SUM(B20:H20)","v":4.3}]
["USRP B210",{"$f":"1*0.15*0.7","v":0.105},{"$f":"4*0.3*0.7","v":0.84},{"$f":"3*0.25*0.7","v":0.52499999999999991},{"$f":"5*0.08*0.7","v":0.27999999999999997},{"$f":"4*0.22*0.7","v":0.61599999999999999},{"$f":"5*0.55*0.3","v":0.82499999999999996},{"$f":"5*0.45*0.3","v":0.67499999999999993},{"$f":"SUM(B21:H21)","v":3.8659999999999997}]
["LimeSDR Mini 2.0",{"$f":"4*0.15*0.7","v":0.42},{"$f":"3*0.3*0.7","v":0.62999999999999989},{"$f":"3*0.25*0.7","v":0.52499999999999991},{"$f":"4*0.08*0.7","v":0.22399999999999998},{"$f":"3*0.22*0.7","v":0.46199999999999997},{"$f":"4*0.55*0.3","v":0.66},{"$f":"3*0.45*0.3","v":0.40500000000000003},{"$f":"SUM(B22:H22)","v":3.3259999999999996}]
["HackRF One",{"$f":"5*0.15*0.7","v":0.52499999999999991},{"$f":"4*0.3*0.7","v":0.84},{"$f":"3*0.25*0.7","v":0.52499999999999991},{"$f":"3*0.08*0.7","v":0.16799999999999998},{"$f":"2*0.22*0.7","v":0.308},{"$f":"4*0.55*0.3","v":0.66},{"$f":"4*0.45*0.3","v":0.54},{"$f":"SUM(B23:H23)","v":3.5659999999999998}]
[]
[]
["Platform Support (20%)"]
[null,"Software Capability (60% of Platform Support)",null,null,"Support Ecosystem (40% of Platform Support)"]
["SDR","Supported Drivers, OS, & API / SDK Availability (35%)","SDR Framework Integration (35%)","Satellite Communications Software Integration      (30%)","Resources & Existing Documentation (100%)","Total"]
["USRP B200",{"$f":"5*0.35*0.6","v":1.05},{"$f":"5*0.35*0.6","v":1.05},{"$f":"4*0.3*0.6","v":0.72},{"$f":"5*1*0.4","v":2},{"$f":"SUM(B29:E29)","v":4.82}]
["USRP B210",{"$f":"5*0.35*0.6","v":1.05},{"$f":"5*0.35*0.6","v":1.05},{"$f":"4*0.3*0.6","v":0.72},{"$f":"5*1*0.4","v":2},{"$f":"SUM(B30:E30)","v":4.82}]
["LimeSDR Mini 2.0",{"$f":"4*0.35*0.6","v":0.84},{"$f":"4*0.35*0.6","v":0.84},{"$f":"3*0.3*0.6","v":0.53999999999999992},{"$f":"3*1*0.4","v":1.2000000000000002},{"$f":"SUM(B31:E31)","v":3.42}]
["HackRF One",{"$f":"3*0.35*0.6","v":0.62999999999999989},{"$f":"4*0.35*0.6","v":0.84},{"$f":"3*0.3*0.6","v":0.53999999999999992},{"$f":"4*1*0.4","v":1.6},{"$f":"SUM(B32:E32)","v":3.61}]